[Event "1000GM Spring IM-D 2024"]
[Site "New York"]
[Date "2024.03.28"]
[Round "2.9"]
[White "Ho, Carter"]
[Black "Zaderman, Vitaly"]
[Result "1-0"]
[ECO "B43"]
[WhiteElo "2108"]
[BlackElo "2177"]
[Annotator "RC"]
[PlyCount "57"]
[EventDate "2024.03.26"]
[EventType "tourn"]
[EventCountry "USA"]
[SourceTitle "playchess.com"]
[Source "ChessBase"]
[SourceQuality "1"]
[TimeControl "5400+30"]

1. e4 {[%emt 0:00:11]} c5 {[%emt 0:00:08]} 2. Nf3 {[%emt 0:00:06]} e6 {[%emt 0:00:17]} 3. d4 {[%emt 0:00:06]} cxd4 {[%emt 0:00:06]} 4. Nxd4 {[%emt 0:00:07]} a6 {[%emt 0:00:02]} 5. Nc3 {[%emt 0:00:12]} Qc7 {[%emt 0:00:15]} 6. Qf3 {[%emt 0:00:18]} Nf6 {[%emt 0:01:12]} 7. Qg3 {[%emt 0:00:07]} Qxg3 {[%emt 0:00:35]} 8. hxg3 {[%emt 0:00:06]} Nc6 {[%emt 0:01:27]} 9. Nxc6 {[%emt 0:03:27]} dxc6 {[%emt 0:00:47]} 10. e5 {[%emt 0:04:45]} Nd7 {[%emt 0:01:08]} 11. f4 {[%emt 0:07:22]} b5 {[%emt 0:00:28]} 12. Be3 {[%emt 0:10:25]} Bb7 {[%emt 0:03:32]} 13. Be2 {[%emt 0:04:17]} Be7 {[%emt 0:03:36]} 14. O-O-O {[%emt 0:02:33]} O-O-O {[%emt 0:08:28]} 15. Ne4 {[%emt 0:03:13]} c5 {[%emt 0:04:08]} 16. Nd6+ {[%emt 0:02:52]} Bxd6 {[%emt 0:00:18]} 17. Rxd6 {[%emt 0:00:06]} Bxg2 {[%emt 0:00:27]} 18. Rhd1 {[%emt 0:00:14]} Bb7 {[%emt 0:00:35]} 19. a4 {[%emt 0:10:48]} bxa4 {[%emt 0:00:34]} 20. Bxa6 {[%emt 0:08:03]} Bxa6 {[%emt 0:00:11]} 21. Rxa6 {[%emt 0:00:07]} Kb7 {[%emt 0:03:23]} 22. Rdd6 {[%emt 0:10:14]} g5 {[%emt 0:00:48]} 23. fxg5 {[%emt 0:03:26]} Nxe5 {[%emt 0:00:15]} 24. Rdb6+ {[%emt 0:00:28]} Kc8 {[%emt 0:00:18]} 25. Bf4 {[%emt 0:00:12]} Rd5 {[%emt 0:00:33]} 26. c4 {[%emt 0:01:47]} Nxc4 {[%emt 0:00:23]} 27. Rb8+ {[%emt 0:00:07]} Kd7 {[%emt 0:01:01]} 28. Ra7+ {[%emt 0:00:05]} Kc6 {[%emt 0:00:12]} 29. Rc7# {[%emt 0:00:04]} 1-0

[Event "1000GM Spring IM-D 2024"]
[Site "New York"]
[Date "2024.03.29"]
[Round "3.1"]
[White "Cherukuri, Nitesh"]
[Black "Rohde, Michael"]
[Result "1-0"]
[ECO "B43"]
[WhiteElo "2000"]
[BlackElo "2318"]
[Annotator "RC"]
[PlyCount "57"]
[EventDate "2024.03.26"]
[EventType "tourn"]
[EventCountry "USA"]
[SourceTitle "playchess.com"]
[Source "ChessBase"]
[SourceQuality "1"]
[TimeControl "5400+30"]

1. e4 {[%emt 0:00:21]} c5 {[%emt 0:20:38]} 2. Nf3 {[%emt 0:00:08]} e6 {[%emt 0:00:12]} 3. d4 {[%emt 0:00:11]} cxd4 {[%emt 0:00:31]} 4. Nxd4 {[%emt 0:00:08]} a6 {[%emt 0:00:09]} 5. Nc3 {[%emt 0:00:06]} Qc7 {[%emt 0:00:04]} 6. Bd3 {[%emt 0:00:16]} Nf6 {[%emt 0:00:31]} 7. Qe2 {[%emt 0:00:17]} d6 {[%emt 0:00:54]} 8. g4 {[%emt 0:01:38]} Nc6 {[%emt 0:07:00]} 9. Be3 {[%emt 0:05:16]} Nxd4 {[%emt 0:03:01]} 10. Bxd4 {[%emt 0:00:06]} e5 {[%emt 0:00:34]} 11. Be3 {[%emt 0:00:14]} Bxg4 {[%emt 0:00:30]} 12. f3 {[%emt 0:00:09]} Be6 {[%emt 0:00:08]} 13. O-O-O {[%emt 0:03:04]} Rc8 {[%emt 0:02:31]} 14. Rhg1 {[%emt 0:03:36]} g6 {[%emt 0:14:30]} 15. f4 {[%emt 0:06:13]} Bh6 {[%emt 0:10:06]} 16. f5 {[%emt 0:01:23]} Bxe3+ {[%emt 0:00:41]} 17. Qxe3 {[%emt 0:00:03]} gxf5 {[%emt 0:02:02]} 18. exf5 {[%emt 0:01:56]} Bd5 {[%emt 0:10:04]} 19. Qh6 {[%emt 0:04:10]} Qe7 {[%emt 0:05:02]} 20. Nxd5 {[%emt 0:01:03]} Nxd5 {[%emt 0:00:04]} 21. Bxa6 {[%emt 0:01:20]} Qc7 {[%emt 0:03:33]} 22. Bb5+ {[%emt 0:03:18]} Ke7 {[%emt 0:00:49]} 23. f6+ {[%emt 0:05:32]} Nxf6 {[%emt 0:01:39]} 24. c4 {[%emt 0:00:40]} d5 {[%emt 0:08:20]} 25. Rgf1 {[%emt 0:05:25]} Qd6 {[%emt 0:05:49]} 26. Rxd5 {[%emt 0:01:37]} Qe6 {[%emt 0:00:53]} 27. Qg5 {[%emt 0:00:28]} Rhg8 {[%emt 0:00:51]} 28. Rd7+ {[%emt 0:00:20]} Kf8 {[%emt 0:01:34]} 29. Qxf6 {[%emt 0:00:27]} 1-0

[Event "1000GM Spring IM-D 2024"]
[Site "New York"]
[Date "2024.03.29"]
[Round "3.2"]
[White "Yoo, Eugene"]
[Black "Urhegyi, Marton"]
[Result "1/2-1/2"]
[ECO "E08"]
[WhiteElo "2205"]
[BlackElo "2258"]
[Annotator "RC"]
[PlyCount "31"]
[EventDate "2024.03.26"]
[EventType "tourn"]
[EventCountry "USA"]
[SourceTitle "playchess.com"]
[Source "ChessBase"]
[SourceQuality "1"]
[TimeControl "5400+30"]

1. d4 {[%emt 0:12:04]} d5 {[%emt 0:00:14]} 2. Nf3 {[%emt 0:00:05]} Nf6 {[%emt 0:00:11]} 3. g3 {[%emt 0:00:02]} e6 {[%emt 0:02:46]} 4. Bg2 {[%emt 0:00:19]} Be7 {[%emt 0:00:12]} 5. O-O {[%emt 0:00:24]} O-O {[%emt 0:00:05]} 6. c4 {[%emt 0:00:04]} c6 {[%emt 0:02:05]} 7. b3 {[%emt 0:00:44]} a5 {[%emt 0:01:05]} 8. Qc2 {[%emt 0:03:41]} b6 {[%emt 0:05:57]} 9. Bb2 {[%emt 0:01:44]} Nbd7 {[%emt 0:01:27]} 10. Rd1 {[%emt 0:14:14]} Bb7 {[%emt 0:02:07]} 11. Nc3 {[%emt 0:00:31]} Ba6 {[%emt 0:06:08]} 12. Nd2 {[%emt 0:14:55]} Rc8 {[%emt 0:04:43]} 13. e4 {[%emt 0:05:56]} dxe4 {[%emt 0:03:17]} 14. Ndxe4 {[%emt 0:01:11]} b5 {[%emt 0:01:56]} 15. Nxf6+ {[%emt 0:03:10]} Nxf6 {[%emt 0:03:00]} 16. Ne4 {[%emt 0:00:06]} 1/2-1/2

[Event "1000GM Spring IM-D 2024"]
[Site "New York"]
[Date "2024.03.29"]
[Round "3.3"]
[White "Safranek, William"]
[Black "Lapshun, Yury"]
[Result "0-1"]
[ECO "B23"]
[WhiteElo "1950"]
[BlackElo "2332"]
[Annotator "RC"]
[PlyCount "128"]
[EventDate "2024.03.26"]
[EventType "tourn"]
[EventCountry "USA"]
[SourceTitle "playchess.com"]
[Source "ChessBase"]
[SourceQuality "1"]
[TimeControl "5400+30"]

1. e4 {[%emt 0:00:01]} c5 {[%emt 0:38:29]} 2. Nc3 {[%emt 0:00:07]} Nc6 {[%emt 0:00:09]} 3. Bb5 {[%emt 0:00:06]} g6 {[%emt 0:00:22]} 4. Bxc6 {[%emt 0:00:05]} bxc6 {[%emt 0:01:00]} 5. d3 {[%emt 0:00:05]} Bg7 {[%emt 0:00:48]} 6. f4 {[%emt 0:00:04]} d6 {[%emt 0:00:45]} 7. Nf3 {[%emt 0:00:07]} Nf6 {[%emt 0:00:57]} 8. O-O {[%emt 0:00:06]} Rb8 {[%emt 0:02:32]} 9. Qe1 {[%emt 0:01:37]} Bg4 {[%emt 0:02:56]} 10. e5 {[%emt 0:06:49]} Nd5 {[%emt 0:00:35]} 11. exd6 {[%emt 0:00:23]} Bxf3 {[%emt 0:02:59]} 12. Rxf3 {[%emt 0:11:57]} Nxc3 {[%emt 0:01:20]} 13. bxc3 {[%emt 0:08:14]} e6 {[%emt 0:00:11]} 14. f5 {[%emt 0:04:49]} gxf5 {[%emt 0:00:14]} 15. Rxf5 {[%emt 0:03:13]} O-O {[%emt 0:00:09]} 16. Bg5 {[%emt 0:17:21]} Qxd6 {[%emt 0:06:30]} 17. Bf4 {[%emt 0:00:05]} Qd7 {[%emt 0:00:53]} 18. Rh5 {[%emt 0:09:34]} Rb2 {[%emt 0:05:15]} 19. Qg3 {[%emt 0:06:23]} f6 {[%emt 0:02:46]} 20. Rxc5 {[%emt 0:12:08]} Rxc2 {[%emt 0:01:17]} 21. d4 {[%emt 0:00:03]} Rb2 {[%emt 0:05:16]} 22. Rh5 {[%emt 0:01:52]} Qf7 {[%emt 0:04:56]} 23. Rc5 {[%emt 0:05:28]} Rc8 {[%emt 0:00:45]} 24. Qf3 {[%emt 0:01:21]} Qg6 {[%emt 0:02:41]} 25. h4 {[%emt 0:01:56]} Bf8 {[%emt 0:03:08]} 26. Ra5 {[%emt 0:01:48]} Qg7 {[%emt 0:01:45]} 27. Bc1 {[%emt 0:01:59]} Rb5 {[%emt 0:00:30]} 28. Rxb5 {[%emt 0:00:10]} cxb5 {[%emt 0:00:04]} 29. Bd2 {[%emt 0:00:20]} Rd8 {[%emt 0:01:14]} 30. a4 {[%emt 0:02:37]} b4 {[%emt 0:02:49]} 31. cxb4 {[%emt 0:00:09]} f5 {[%emt 0:00:04]} 32. Qf2 {[%emt 0:02:43]} Qg4 {[%emt 0:02:33]} 33. Bf4 {[%emt 0:02:00]} Bxb4 {[%emt 0:01:17]} 34. Rb1 {[%emt 0:00:06]} a5 {[%emt 0:00:28]} 35. Qe3 {[%emt 0:00:10]} Kf7 {[%emt 0:01:16]} 36. Rc1 {[%emt 0:00:12]} Bd6 {[%emt 0:03:04]} 37. Bg5 {[%emt 0:00:58]} Rb8 {[%emt 0:02:23]} 38. Re1 {[%emt 0:00:33]} Qe4 {[%emt 0:00:02]} 39. Qxe4 {[%emt 0:00:05]} fxe4 {[%emt 0:00:07]} 40. Rxe4 {[%emt 0:00:04]} Rb4 {[%emt 0:00:03]} 41. Bf4 {[%emt 0:00:39]} Be7 {[%emt 0:00:36]} 42. Be5 {[%emt 0:00:19]} Rxa4 {[%emt 0:00:15]} 43. Rg4 {[%emt 0:00:05]} Bf8 {[%emt 0:02:10]} 44. Rf4+ {[%emt 0:00:24]} Ke8 {[%emt 0:00:07]} 45. Rf1 {[%emt 0:00:12]} Rc4 {[%emt 0:01:43]} 46. Rb1 {[%emt 0:01:11]} Bb4 {[%emt 0:00:21]} 47. Ra1 {[%emt 0:01:27]} Bc3 {[%emt 0:00:36]} 48. Rb1 {[%emt 0:00:11]} Rb4 {[%emt 0:01:19]} 49. Rc1 {[%emt 0:00:09]} Rb3 {[%emt 0:00:21]} 50. Rc2 {[%emt 0:01:03]} a4 {[%emt 0:00:09]} 51. Ra2 {[%emt 0:00:10]} a3 {[%emt 0:00:05]} 52. Kh2 {[%emt 0:01:49]} h5 {[%emt 0:00:19]} 53. Kh1 {[%emt 0:00:46]} Bb2 {[%emt 0:00:21]} 54. Kg1 {[%emt 0:00:32]} Kd7 {[%emt 0:00:21]} 55. Kf2 {[%emt 0:00:08]} Kc6 {[%emt 0:00:08]} 56. g4 {[%emt 0:00:22]} hxg4 {[%emt 0:00:04]} 57. h5 {[%emt 0:00:03]} Rh3 {[%emt 0:00:54]} 58. Bg7 {[%emt 0:00:53]} Rxh5 {[%emt 0:00:28]} 59. Kg3 {[%emt 0:00:07]} Rd5 {[%emt 0:00:13]} 60. Bf8 {[%emt 0:00:37]} Rxd4 {[%emt 0:00:22]} 61. Kh4 {[%emt 0:00:33]} Ra4 {[%emt 0:00:38]} 62. Kg3 {[%emt 0:00:58]} Kd5 {[%emt 0:00:46]} 63. Be7 {[%emt 0:00:11]} Kc4 {[%emt 0:00:11]} 64. Bxa3 {[%emt 0:00:14]} Rxa3+ {[%emt 0:00:07]} 0-1

[Event "1000GM Spring IM-D 2024"]
[Site "New York"]
[Date "2024.03.29"]
[Round "3.4"]
[White "Gaw, Chloe"]
[Black "Fedorowicz, John"]
[Result "0-1"]
[ECO "D85"]
[WhiteElo "2092"]
[BlackElo "2372"]
[Annotator "RC"]
[PlyCount "136"]
[EventDate "2024.03.26"]
[EventType "tourn"]
[EventCountry "USA"]
[SourceTitle "playchess.com"]
[Source "ChessBase"]
[SourceQuality "1"]
[TimeControl "5400+30"]

1. d4 {[%emt 0:00:03]} Nf6 {[%emt 0:00:49]} 2. c4 {[%emt 0:00:05]} g6 {[%emt 0:00:46]} 3. Nc3 {[%emt 0:00:07]} d5 {[%emt 0:04:47]} 4. cxd5 {[%emt 0:00:14]} Nxd5 {[%emt 0:00:09]} 5. Nf3 {[%emt 0:00:04]} Bg7 {[%emt 0:00:32]} 6. Qa4+ {[%emt 0:00:16]} c6 {[%emt 0:01:43]} 7. e4 {[%emt 0:00:20]} Nxc3 {[%emt 0:04:15]} 8. bxc3 {[%emt 0:00:05]} O-O {[%emt 0:00:05]} 9. Be2 {[%emt 0:02:00]} Nd7 {[%emt 0:02:39]} 10. O-O {[%emt 0:02:21]} b5 {[%emt 0:03:16]} 11. Qc2 {[%emt 0:06:51]} Nb6 {[%emt 0:00:40]} 12. Be3 {[%emt 0:03:38]} Be6 {[%emt 0:00:31]} 13. Nd2 {[%emt 0:01:20]} Rc8 {[%emt 0:02:40]} 14. Rfd1 {[%emt 0:02:34]} f5 {[%emt 0:09:45]} 15. f3 {[%emt 0:03:56]} Kh8 {[%emt 0:02:14]} 16. Kh1 {[%emt 0:01:16]} Qc7 {[%emt 0:03:32]} 17. c4 {[%emt 0:06:33]} fxe4 {[%emt 0:02:59]} 18. fxe4 {[%emt 0:00:39]} Qb7 {[%emt 0:07:04]} 19. Rac1 {[%emt 0:04:49]} Bg8 {[%emt 0:01:40]} 20. Qb1 {[%emt 0:06:43]} a6 {[%emt 0:01:58]} 21. Qb4 {[%emt 0:02:10]} Na4 {[%emt 0:07:07]} 22. Bd3 {[%emt 0:09:59]} c5 {[%emt 0:02:03]} 23. dxc5 {[%emt 0:09:21]} Nb2 {[%emt 0:00:06]} 24. Nb3 {[%emt 0:08:31]} Nxd3 {[%emt 0:02:10]} 25. Rxd3 {[%emt 0:00:57]} Qxe4 {[%emt 0:00:04]} 26. Qd2 {[%emt 0:03:53]} bxc4 {[%emt 0:01:18]} 27. Rd4 {[%emt 0:00:48]} Qa8 {[%emt 0:02:17]} 28. Na5 {[%emt 0:02:47]} Rxc5 {[%emt 0:00:11]} 29. Rdxc4 {[%emt 0:04:51]} Rxc4 {[%emt 0:03:29]} 30. Nxc4 {[%emt 0:00:14]} Qd5 {[%emt 0:00:37]} 31. a3 {[%emt 0:08:47]} Rc8 {[%emt 0:00:31]} 32. Qxd5 {[%emt 0:02:22]} Bxd5 {[%emt 0:00:04]} 33. Nb6 {[%emt 0:00:12]} Rxc1+ {[%emt 0:00:06]} 34. Bxc1 {[%emt 0:00:02]} Bc6 {[%emt 0:00:26]} 35. Be3 {[%emt 0:03:19]} Kg8 {[%emt 0:00:10]} 36. Kg1 {[%emt 0:00:35]} Kf7 {[%emt 0:00:25]} 37. Kf2 {[%emt 0:00:39]} Ke6 {[%emt 0:00:16]} 38. g3 {[%emt 0:02:51]} Bb7 {[%emt 0:00:37]} 39. Na4 {[%emt 0:01:10]} Kd5 {[%emt 0:00:13]} 40. Nb6+ {[%emt 0:01:16]} Kc6 {[%emt 0:00:43]} 41. Ke2 {[%emt 0:00:38]} Kb5 {[%emt 0:00:35]} 42. Kd3 {[%emt 0:00:20]} Be5 {[%emt 0:01:19]} 43. a4+ {[%emt 0:01:31]} Kb4 {[%emt 0:00:24]} 44. Bd2+ {[%emt 0:00:26]} Kb3 {[%emt 0:00:19]} 45. Nc4 {[%emt 0:00:41]} Bc7 {[%emt 0:00:26]} 46. Ba5 {[%emt 0:00:32]} Bb8 {[%emt 0:00:16]} 47. Bd8 {[%emt 0:00:23]} Bg2 {[%emt 0:02:13]} 48. Ne3 {[%emt 0:00:32]} Bc6 {[%emt 0:00:16]} 49. Bxe7 {[%emt 0:00:15]} Bxa4 {[%emt 0:00:09]} 50. Nd5 {[%emt 0:00:44]} Bb5+ {[%emt 0:00:12]} 51. Kd2 {[%emt 0:00:42]} a5 {[%emt 0:00:06]} 52. Nc3 {[%emt 0:00:23]} Bc6 {[%emt 0:00:19]} 53. Ne2 {[%emt 0:00:19]} Kc4 {[%emt 0:00:25]} 54. Nc3 {[%emt 0:00:51]} Be5 {[%emt 0:00:13]} 55. Nb1 {[%emt 0:00:18]} a4 {[%emt 0:00:48]} 56. Na3+ {[%emt 0:00:35]} Kb3 {[%emt 0:00:13]} 57. Nc2 {[%emt 0:00:28]} Bc3+ {[%emt 0:00:51]} 58. Kc1 {[%emt 0:00:24]} Be4 {[%emt 0:00:25]} 59. Ne3 {[%emt 0:00:33]} a3 {[%emt 0:00:37]} 60. Bxa3 {[%emt 0:00:22]} Kxa3 {[%emt 0:00:09]} 61. Nc4+ {[%emt 0:00:43]} Kb4 {[%emt 0:00:12]} 62. Nd6 {[%emt 0:00:15]} Bd3 {[%emt 0:00:12]} 63. Nb7 {[%emt 0:00:33]} Kc4 {[%emt 0:00:22]} 64. Nd8 {[%emt 0:00:28]} Kd5 {[%emt 0:00:21]} 65. Nf7 {[%emt 0:00:23]} Bf6 {[%emt 0:00:23]} 66. Kd2 {[%emt 0:00:15]} Bf5 {[%emt 0:00:05]} 67. Ke2 {[%emt 0:00:25]} Be6 {[%emt 0:00:09]} 68. Nh6 {[%emt 0:00:18]} Bg7 {[%emt 0:00:11]} 0-1

[Event "1000GM Spring IM-D 2024"]
[Site "New York"]
[Date "2024.03.29"]
[Round "3.5"]
[White "Zaderman, Vitaly"]
[Black "Shangin, Lev"]
[Result "1/2-1/2"]
[ECO "E40"]
[WhiteElo "2177"]
[BlackElo "1994"]
[Annotator "RC"]
[PlyCount "93"]
[EventDate "2024.03.26"]
[EventType "tourn"]
[EventCountry "USA"]
[SourceTitle "playchess.com"]
[Source "ChessBase"]
[SourceQuality "1"]
[TimeControl "5400+30"]

1. d4 {[%emt 0:00:13]} Nf6 {[%emt 0:00:23]} 2. c4 {[%emt 0:00:11]} e6 {[%emt 0:00:10]} 3. Nc3 {[%emt 0:00:16]} Bb4 {[%emt 0:00:15]} 4. e3 {[%emt 0:00:19]} d5 {[%emt 0:00:34]} 5. a3 {[%emt 0:00:14]} Be7 {[%emt 0:01:44]} 6. cxd5 {[%emt 0:00:18]} exd5 {[%emt 0:00:27]} 7. Bd3 {[%emt 0:00:08]} O-O {[%emt 0:01:06]} 8. Nge2 {[%emt 0:00:32]} Re8 {[%emt 0:02:03]} 9. O-O {[%emt 0:00:16]} Bf8 {[%emt 0:01:52]} 10. f3 {[%emt 0:05:25]} c5 {[%emt 0:02:15]} 11. Kh1 {[%emt 0:04:06]} Nc6 {[%emt 0:03:09]} 12. Bd2 {[%emt 0:02:19]} cxd4 {[%emt 0:04:40]} 13. exd4 {[%emt 0:00:27]} b6 {[%emt 0:02:45]} 14. Rc1 {[%emt 0:03:27]} Bd7 {[%emt 0:03:44]} 15. Ba6 {[%emt 0:06:59]} Bc8 {[%emt 0:07:17]} 16. Bb5 {[%emt 0:01:47]} Bd7 {[%emt 0:02:28]} 17. Bg5 {[%emt 0:07:31]} a6 {[%emt 0:03:00]} 18. Ba4 {[%emt 0:02:34]} Ne7 {[%emt 0:04:48]} 19. Bxf6 {[%emt 0:05:00]} Bxa4 {[%emt 0:01:50]} 20. Qxa4 {[%emt 0:02:17]} gxf6 {[%emt 0:00:08]} 21. Qb3 {[%emt 0:03:21]} Nf5 {[%emt 0:03:25]} 22. f4 {[%emt 0:05:56]} Rc8 {[%emt 0:06:20]} 23. Qxd5 {[%emt 0:01:17]} Qxd5 {[%emt 0:03:00]} 24. Nxd5 {[%emt 0:00:06]} Kg7 {[%emt 0:00:51]} 25. Ng3 {[%emt 0:04:25]} Nxg3+ {[%emt 0:04:25]} 26. hxg3 {[%emt 0:00:09]} Rcd8 {[%emt 0:00:45]} 27. Nxb6 {[%emt 0:00:54]} Rxd4 {[%emt 0:00:14]} 28. Rfd1 {[%emt 0:01:57]} Rxd1+ {[%emt 0:01:48]} 29. Rxd1 {[%emt 0:00:09]} Re2 {[%emt 0:00:12]} 30. b4 {[%emt 0:07:07]} Re3 {[%emt 0:00:50]} 31. Nd7 {[%emt 0:03:03]} Rxa3 {[%emt 0:01:30]} 32. Nxf8 {[%emt 0:01:58]} Kxf8 {[%emt 0:00:03]} 33. Rb1 {[%emt 0:00:43]} Rxg3 {[%emt 0:00:20]} 34. Kh2 {[%emt 0:04:08]} Ra3 {[%emt 0:01:14]} 35. b5 {[%emt 0:00:17]} axb5 {[%emt 0:00:25]} 36. Rxb5 {[%emt 0:00:06]} Kg7 {[%emt 0:00:12]} 37. g4 {[%emt 0:00:53]} Rf3 {[%emt 0:01:56]} 38. Rf5 {[%emt 0:00:05]} Kg6 {[%emt 0:00:49]} 39. Kg2 {[%emt 0:03:12]} Ra3 {[%emt 0:00:18]} 40. Kf2 {[%emt 0:00:10]} Ra4 {[%emt 0:01:32]} 41. Kf3 {[%emt 0:00:07]} Ra1 {[%emt 0:03:06]} 42. Kf2 {[%emt 0:00:30]} Ra8 {[%emt 0:03:46]} 43. Kg3 {[%emt 0:00:29]} Ra2 {[%emt 0:01:48]} 44. Kf3 {[%emt 0:00:33]} Rh2 {[%emt 0:00:37]} 45. Kg3 {[%emt 0:00:11]} Ra2 {[%emt 0:01:05]} 46. Kf3 {[%emt 0:00:10]} Ra1 {[%emt 0:00:03]} 47. Kg2 {[%emt 0:00:15]} 1/2-1/2

[Event "1000GM Spring IM-D 2024"]
[Site "New York"]
[Date "2024.03.29"]
[Round "3.6"]
[White "Espinosa, Pedro"]
[Black "Jakovljevic, Vlado"]
[Result "0-1"]
[ECO "D45"]
[WhiteElo "2229"]
[BlackElo "2356"]
[Annotator "RC"]
[PlyCount "90"]
[EventDate "2024.03.26"]
[EventType "tourn"]
[EventCountry "USA"]
[SourceTitle "playchess.com"]
[Source "ChessBase"]
[SourceQuality "1"]
[TimeControl "5400+30"]

1. d4 {[%emt 0:01:12]} Nf6 {[%emt 0:01:34]} 2. c4 {[%emt 0:01:27]} e6 {[%emt 0:00:08]} 3. Nf3 {[%emt 0:00:26]} d5 {[%emt 0:00:16]} 4. Nc3 {[%emt 0:00:27]} c6 {[%emt 0:01:09]} 5. e3 {[%emt 0:01:21]} Nbd7 {[%emt 0:00:11]} 6. Be2 {[%emt 0:00:24]} Bd6 {[%emt 0:00:47]} 7. O-O {[%emt 0:02:37]} O-O {[%emt 0:00:16]} 8. b3 {[%emt 0:01:22]} b6 {[%emt 0:00:37]} 9. Bb2 {[%emt 0:00:37]} Bb7 {[%emt 0:00:11]} 10. Bd3 {[%emt 0:01:20]} Re8 {[%emt 0:02:33]} 11. h3 {[%emt 0:02:34]} Rc8 {[%emt 0:05:47]} 12. Rc1 {[%emt 0:01:56]} Qe7 {[%emt 0:06:00]} 13. Re1 {[%emt 0:04:57]} c5 {[%emt 0:18:08]} 14. cxd5 {[%emt 0:01:24]} exd5 {[%emt 0:00:43]} 15. Bf5 {[%emt 0:06:51]} Rcd8 {[%emt 0:07:34]} 16. Re2 {[%emt 0:04:00]} Ne4 {[%emt 0:13:05]} 17. dxc5 {[%emt 0:06:42]} Nxc3 {[%emt 0:00:14]} 18. Bxc3 {[%emt 0:03:21]} bxc5 {[%emt 0:00:18]} 19. Bd3 {[%emt 0:06:00]} Bb8 {[%emt 0:07:57]} 20. Rd2 {[%emt 0:18:09]} h6 {[%emt 0:11:22]} 21. Bf1 {[%emt 0:02:33]} Rc8 {[%emt 0:01:58]} 22. Rdc2 {[%emt 0:05:33]} a6 {[%emt 0:07:44]} 23. Bb2 {[%emt 0:01:51]} Ba7 {[%emt 0:02:28]} 24. g3 {[%emt 0:02:15]} Nf6 {[%emt 0:00:53]} 25. Bg2 {[%emt 0:01:26]} Ne4 {[%emt 0:00:37]} 26. Ne5 {[%emt 0:01:56]} Rcd8 {[%emt 0:03:34]} 27. Qg4 {[%emt 0:02:30]} Nf6 {[%emt 0:02:19]} 28. Qa4 {[%emt 0:01:47]} Rc8 {[%emt 0:04:07]} 29. Nd3 {[%emt 0:01:27]} d4 {[%emt 0:01:47]} 30. Bxb7 {[%emt 0:04:41]} Qxb7 {[%emt 0:00:01]} 31. Nxc5 {[%emt 0:03:24]} Bxc5 {[%emt 0:00:15]} 32. Rxc5 {[%emt 0:00:08]} Rxc5 {[%emt 0:00:28]} 33. Rxc5 {[%emt 0:00:34]} dxe3 {[%emt 0:00:06]} 34. Bxf6 {[%emt 0:02:30]} Re6 {[%emt 0:01:31]} 35. Bc3 {[%emt 0:04:17]} exf2+ {[%emt 0:00:21]} 36. Kxf2 {[%emt 0:00:10]} Qh1 {[%emt 0:00:36]} 37. Be5 {[%emt 0:01:24]} Qh2+ {[%emt 0:00:20]} 38. Kf3 {[%emt 0:00:46]} Qxh3 {[%emt 0:00:20]} 39. Qg4 {[%emt 0:01:33]} Qf1+ {[%emt 0:00:45]} 40. Ke4 {[%emt 0:00:48]} Qe1+ {[%emt 0:00:52]} 41. Kd4 {[%emt 0:01:32]} Rxe5 {[%emt 0:00:28]} 42. Qc8+ {[%emt 0:00:37]} Re8 {[%emt 0:00:04]} 43. Qxa6 {[%emt 0:01:11]} Rd8+ {[%emt 0:00:15]} 44. Rd5 {[%emt 0:00:00]} Qd2+ {[%emt 0:00:08]} 45. Qd3 {[%emt 0:01:00]} Rxd5+ {[%emt 0:02:13]} 0-1

[Event "1000GM Spring IM-D 2024"]
[Site "New York"]
[Date "2024.03.29"]
[Round "3.7"]
[White "Polyik, Peter"]
[Black "Ho, Cooper"]
[Result "1-0"]
[ECO "D31"]
[WhiteElo "2295"]
[BlackElo "2004"]
[Annotator "RC"]
[PlyCount "59"]
[EventDate "2024.03.26"]
[EventType "tourn"]
[EventCountry "USA"]
[SourceTitle "playchess.com"]
[Source "ChessBase"]
[SourceQuality "1"]
[TimeControl "5400+30"]

1. d4 {[%emt 0:00:04]} d5 {[%emt 0:00:04]} 2. c4 {[%emt 0:00:07]} e6 {[%emt 0:00:09]} 3. Nc3 {[%emt 0:03:47]} c6 {[%emt 0:00:10]} 4. Nf3 {[%emt 0:00:33]} dxc4 {[%emt 0:00:11]} 5. e3 {[%emt 0:00:47]} b5 {[%emt 0:00:09]} 6. a4 {[%emt 0:00:32]} Bb4 {[%emt 0:00:16]} 7. Bd2 {[%emt 0:00:32]} a5 {[%emt 0:00:15]} 8. Qb1 {[%emt 0:02:57]} Bxc3 {[%emt 0:07:23]} 9. bxc3 {[%emt 0:02:23]} Bd7 {[%emt 0:04:43]} 10. Be2 {[%emt 0:06:28]} Ne7 {[%emt 0:08:32]} 11. O-O {[%emt 0:04:52]} f6 {[%emt 0:06:27]} 12. e4 {[%emt 0:28:53]} O-O {[%emt 0:02:01]} 13. Bf4 {[%emt 0:01:17]} Be8 {[%emt 0:13:50]} 14. Ra2 {[%emt 0:04:40]} Qd7 {[%emt 0:13:47]} 15. Bxb8 {[%emt 0:03:50]} Rxb8 {[%emt 0:00:08]} 16. Bxc4 {[%emt 0:00:23]} Bh5 {[%emt 0:11:58]} 17. axb5 {[%emt 0:12:22]} Bxf3 {[%emt 0:02:54]} 18. gxf3 {[%emt 0:00:07]} cxb5 {[%emt 0:03:03]} 19. Rb2 {[%emt 0:00:15]} Ng6 {[%emt 0:05:28]} 20. Rxb5 {[%emt 0:04:11]} Rbc8 {[%emt 0:04:06]} 21. Qa2 {[%emt 0:04:31]} Rxc4 {[%emt 0:06:51]} 22. Qxc4 {[%emt 0:00:06]} Nf4 {[%emt 0:04:59]} 23. Kh1 {[%emt 0:03:40]} Rc8 {[%emt 0:02:49]} 24. Rc5 {[%emt 0:01:42]} Rxc5 {[%emt 0:00:12]} 25. Qxc5 {[%emt 0:02:46]} e5 {[%emt 0:00:12]} 26. Qc4+ {[%emt 0:00:05]} Kh8 {[%emt 0:01:32]} 27. Rb1 {[%emt 0:00:56]} h5 {[%emt 0:00:25]} 28. Rb8+ {[%emt 0:03:06]} Kh7 {[%emt 0:00:02]} 29. Qc8 {[%emt 0:00:05]} Qa7 {[%emt 0:01:34]} 30. Rb7 {[%emt 0:00:18]} 1-0